Workbook

Sheet Face Page
A1: Form Approved Through 6/30/2012 | O1: OMB No. 0925-0001
A2: Department of Health and Human Services | H2: LEAVE BLANK—FOR PHS USE ONLY.
A3: Public Health Services | H3: Type | I3: Activity | L3: Number
H4: Review Group | L4: Formerly
A5: Do not exceed character length restrictions indicated. | H5: Council/Board (Month, Year) | L5: Date Received
A7: 1. TITLE OF PROJECT (Do not exceed 81 characters, including spaces and punctuation.)
A9: 2. RESPONSE TO SPECIFIC REQUEST FOR APPLICATIONS OR PROGRAM ANNOUNCEMENT OR SOLICITATION | N9: NO | O9: YES
A10: (If "Yes," state number and title)
A11: Number: | D11: Title:
A12: 3. PROGRAM DIRECTOR/PRINCIPAL INVESTIGATOR
A13: 3a. NAME (Last, first, middle) | H13: 3b. DEGREE(S) | K13: 3h. | L13: eRA Commons User Name
A15: 3c. POSITION TITLE | H15: 3d. MAILING ADDRESS (Street, city, state, zip code)
A17: 3e. DEPARTMENT, SERVICE, LABORATORY, OR EQUIVALENT
A19: 3f. MAJOR SUBDIVISION | I19: Ames, IA 50011-xxxx
A21: 3g. TELEPHONE AND FAX (Area code, number and extension) | H21: E-MAIL ADDRESS:
A22: TEL: | B22: (515) 294-xxxx | E22: FAX: | G22: (515) 294-xxxx
A23: 4. HUMAN SUBJECTS RESEARCH | F23: 4a. Research Exempt | H23: If "Yes," Exemption No.
A24: No | B24: Yes | F24: No Yes
A25: 4b. Federal-Wide Assurance No. | F25: 4c. Clinical Trial | J25: 4d. NIH-defined Phase III Clinical Trial
F26: No Yes | J26: No | L26: Yes
A27: 5. VERTEBRATE ANIMALS | D27: No | E27: Yes | H27: 5a. Animal Welfare Assurance No.
A28: 6. DATES OF PROPOSED PERIOD OF | G28: 7. COSTS REQUESTED FOR INITIAL | J28: 8. COSTS REQUESTED FOR PROPOSED
A29: SUPPORT (month, day, year--MM/DD/YY) | G29: BUDGET PERIOD | J29: PERIOD OF SUPPORT
A30: From | C30: Through | G30: 7a. Direct Costs ($) | H30: 7b. Total Costs ($) | J30: 8a. Direct Costs ($) | N30: 8b. Total Costs ($)
G31: ='Base Budget'!H51+'Base Budget'!H72 -> 0 | H31: ='Base Budget'!H80 -> 0 | J31: ='Base Budget'!R51+'Base Budget'!R72 -> 0 | N31: ='Base Budget'!C87 -> 0
A32: 9. APPLICANT ORGANIZATION | H32: 10. TYPE OF ORGANIZATION
A33: Name | B33: Iowa State University of Science and Technology | H33: Public: | J33: Federal | L33: State | N33: Local
A34: Address | B34: Office of Sponsored Programs Administration | H34: Private: | J34: Private Nonprofit
B35: 1138 Pearson | H35: For-profit: | J35: General | L35: Small Business
B36: Ames, IA 50011-2207 | H36: Woman-owned | J36: Socially and Economically Disadvantaged
H37: 11. ENTITY IDENTIFICATION NUMBER
H38: 426004224
H39: DUNS NO | J39: 005309844 | L39: Cong. District | O39: IA-004
A40: 12. ADMINISTRATIVE OFFICIAL TO BE NOTIFIED IF AWARD IS MADE | H40: 13. OFFICIAL SIGNING FOR APPLICANT ORGANIZATION
A41: Name | B41: Rochelle Athey | H41: Name | I41: Sara Jane M. Oftelie
A42: Title | B42: Director, OSPA | H42: Title | I42: Manager, Pre-Award Services
A43: Address | B43: Iowa State University of Science and Technology | H43: Address | I43: Iowa State University of Science and Technology
B44: Office of Sponsored Programs Administration | I44: Office of Sponsored Programs Administration
B45: 1138 Pearson | I45: 1138 Pearson
B46: Ames, IA 50011-2207 | I46: Ames, IA 50011-2207
A47: Tel: | B47: 515-294-5225 | F47: FAX: | G47: 515-294-8000 | H47: Tel: | I47: 515-294-5225 | M47: FAX: | N47: 515-294-8000
A48: E-Mail: | B48: grants@iastate.edu | H48: E-Mail: | I48: grants@iastate.edu
H49: SIGNATURE OF OFFICIAL NAMED IN 13. | O49: DATE
H50: (In ink. "Per" signature not acceptable.)
A53: PHS 398 (Rev. 6/09) | G53: Face Page | O53: Form Page 1

Sheet Base Budget
A1: NIH Modular Grant Worksheet, 1 - 5 Years
AD2: Eff 7/1/2014
A3: Iowa State University | AD3: Updated 6/30/2014
A5: Indirect Cost Categories:
A6: 0.5 | C6: On-Campus Organized Research
A7: 0.51 | C7: On Campus Instruction
A8: 0.32 | C8: On-Campus Other Sponsored Activities
A9: 0.26 | C9: Off-Campus All Programs
H12: Note: A module is any multiple of $25,000 up to, and including $250,000.
A13: F&A (Indirect) Rate | C13: 0.5 | H13: 1 | J13: << Number of Years for Project
A15: PI's Name:
A16: Direct Costs that are subject to Indirect
C17: Salary Cap policy @ http://grants.nih.gov/grants/guide/notice-files/NOT-OD-12-035.html
A18: Note for Personnel > >
C19: Salary cap for Post Docs @ http://grants.nih.gov/grants/guide/notice-files/NOT-OD-12-033.html
C20: Salary Cap for Graduate Students @ http://grants.nih.gov/grants/guide/notice-files/NOT-OD-12-033.html
A22: All other costs not listed below: Salaries, Fringe Benefits, travel, materials & supplies, etc. | H22: 0 | J22: 0 | L22: 0 | N22: 0 | P22: 0
A24: Direct Costs that are NOT subject to Indirect
A27: Equipment: $5,000 or greater per item
A28: (Itemize)
H29: 0 | J29: 0 | L29: 0 | N29: 0 | P29: 0
H30: 0 | J30: 0 | L30: 0 | N30: 0 | P30: 0
H31: 0 | J31: 0 | L31: 0 | N31: 0 | P31: 0
H32: 0 | J32: 0 | L32: 0 | N32: 0 | P32: 0
A33: Subtotals | H33: =SUM(H29:H32) -> 0 | J33: =SUM(J29:J32) -> 0 | L33: =SUM(L29:L32) -> 0 | N33: =SUM(N29:N32) -> 0 | P33: =SUM(P29:P32) -> 0
A36: Note: please indicate the number of Grad Students | C36: # of Masters students | E36: # of PhD students
C37: 1 | E37: 0
A38: Tuition | C38: (most majors) | H38: =Tuition!K6 -> 0 | J38: =Tuition!M6 -> 0 | L38: =Tuition!O6 -> 0 | N38: =Tuition!Q6 -> 0 | P38: =Tuition!S6 -> 0
A39: Tuition | C39: (Engineering & Architecture) | H39: =Tuition!K26 -> 0 | J39: =Tuition!M26 -> 0 | L39: =Tuition!O26 -> 0 | N39: =Tuition!Q26 -> 0 | P39: =Tuition!S26 -> 0
A40: Tuition | C40: (Business & STB) | H40: =Tuition!K46 -> 0 | J40: =Tuition!M46 -> 0 | L40: =Tuition!O46 -> 0 | N40: =Tuition!Q46 -> 0 | P40: =Tuition!S46 -> 0
A41: Subtotals | H41: =+H38+H39+H40 -> 0 | J41: =+J38+J39+J40 -> 0 | L41: =+L38+L39+L40 -> 0 | N41: =+N38+N39+N40 -> 0 | P41: =+P38+P39+P40 -> 0
A44: Patient Care
A45: Inpatient | H45: 0 | J45: 0 | L45: 0 | N45: 0 | P45: 0
A46: Outpatient | H46: 0 | J46: 0 | L46: 0 | N46: 0 | P46: 0
A47: Subtotals | H47: =SUM(H45:H46) -> 0 | J47: =SUM(J45:J46) -> 0 | L47: =SUM(L45:L46) -> 0 | N47: =SUM(N45:N46) -> 0 | P47: =SUM(P45:P46) -> 0
A51: Subtotal Direct Cost at ISU | H51: =SUM(+H33+H41+H22+H47) -> 0 | J51: =SUM(+J33+J41+J22+J47) -> 0 | L51: =SUM(+L33+L41+L22+L47) -> 0 | N51: =SUM(+N33+N41+N22+N47) -> 0 | P51: =SUM(+P33+P41+P22+P47) -> 0 | R51: =SUM(H51:P51) -> 0
H52: =SUM(+H51-H39) -> 0 | J52: =SUM(+J51-J39) -> 0 | L52: =SUM(+L51-L39) -> 0 | N52: =SUM(+N51-N39) -> 0 | P52: =SUM(+P51-P39) -> 0
A54: Subawards
A55: Subawardee #1 | U55: Sub to IDC | W55: Not Sub to IDC
E56: Direct | H56: 0 | J56: 0 | L56: 0 | N56: 0 | P56: 0 | U56: =IF(SUM(H56:P57)>25000,25000,SUM(H56:P57)) -> 0 | W56: =SUM(H56:P57)-U56 -> 0
E57: F&A (Indirect) | H57: 0 | J57: 0 | L57: 0 | N57: 0 | P57: 0
H58: =IF(H56+H57>=25000,"25,000",H56+H57) -> 0 | J58: =IF(J56+J57+H58>=25000, 25000-H58, J56+J57) -> 0 | L58: =IF(L56+L57+J58+H58>=25000, 25000-(J58+H58), L56+L57) -> 0 | N58: =IF(N56+N57+L58+J58+H58>=25000, 25000-(L58+J58+H58), N56+N57) -> 0 | P58: =IF(P56+P57+N58+L58+J58+H58>=25000, 25000-(N58+L58+J58+H58), P56+P57) -> 0
A59: Subawardee #2
E60: Direct | H60: 0 | J60: 0 | L60: 0 | N60: 0 | P60: 0 | U60: =IF(SUM(H60:P61)>25000,25000,SUM(H60:P61)) -> 0 | W60: =SUM(H60:P61)-U60 -> 0
E61: F&A (Indirect) | H61: 0 | J61: 0 | L61: 0 | N61: 0 | P61: 0
H62: =IF(H60+H61>=25000,"25,000",H60+H61) -> 0 | J62: =IF(J60+J61+H62>=25000, 25000-H62, J60+J61) -> 0 | L62: =IF(L60+L61+J62+H62>=25000, 25000-(J62+H62), L60+L61) -> 0 | N62: =IF(N60+N61+L62+J62+H62>=25000, 25000-(L62+J62+H62), N60+N61) -> 0 | P62: =IF(P60+P61+N62+L62+J62+H62>=25000, 25000-(N62+L62+J62+H62), P60+P61) -> 0
A63: Subawardee #3
E64: Direct | H64: 0 | J64: 0 | L64: 0 | N64: 0 | P64: 0 | U64: =IF(SUM(H64:P65)>25000,25000,SUM(H64:P65)) -> 0 | W64: =SUM(H64:P65)-U64 -> 0
E65: F&A (Indirect) | H65: 0 | J65: 0 | L65: 0 | N65: 0 | P65: 0
H66: =IF(H64+H65>=25000,"25,000",H64+H65) -> 0 | J66: =IF(J64+J65+H66>=25000, 25000-H66, J64+J65) -> 0 | L66: =IF(L64+L65+J66+H66>=25000, 25000-(J66+H66), L64+L65) -> 0 | N66: =IF(N64+N65+L66+J66+H66>=25000, 25000-(L66+J66+H66), N64+N65) -> 0 | P66: =IF(P64+P65+N66+L66+J66+H66>=25000, 25000-(N66+L66+J66+H66), P64+P65) -> 0
A67: Subawardee #4
E68: Direct | H68: 0 | J68: 0 | L68: 0 | N68: 0 | P68: 0 | U68: =IF(SUM(H68:P69)>25000,25000,SUM(H68:P69)) -> 0 | W68: =SUM(H68:P69)-U68 -> 0
E69: F&A (Indirect) | H69: 0 | J69: 0 | L69: 0 | N69: 0 | P69: 0
H70: =IF(H68+H69>=25000,"25,000",H68+H69) -> 0 | J70: =IF(J68+J69+H70>=25000, 25000-H70, J68+J69) -> 0 | L70: =IF(L68+L69+J70+H70>=25000, 25000-(J70+H70), L68+L69) -> 0 | N70: =IF(N68+N69+L70+J70+H70>=25000, 25000-(L70+J70+H70), N68+N69) -> 0 | P70: =IF(P68+P69+N70+L70+J70+H70>=25000, 25000-(N70+L70+J70+H70), P68+P69) -> 0
A72: Total Direct Subawards | H72: =SUM(H56+H60+H64+H68) -> 0 | J72: =SUM(J56+J60+J64+J68) -> 0 | L72: =SUM(L56+L60+L64+L68) -> 0 | N72: =SUM(N56+N60+N64+N68) -> 0 | P72: =SUM(P56+P60+P64+P68) -> 0 | R72: =SUM(H72:P72) -> 0 | U72: =SUM(U56:U69) -> 0 | W72: =SUM(W56:W69) -> 0
A73: Total Indirect Subawards | H73: =SUM(H57+H61+H65+H69) -> 0 | J73: =SUM(J57+J61+J65+J69) -> 0 | L73: =SUM(L57+L61+L65+L69) -> 0 | N73: =SUM(N57+N61+N65+N69) -> 0 | P73: =SUM(P57+P61+P65+P69) -> 0 | R73: =SUM(H73:P73) -> 0
A77: Total Direct | H77: =SUM(H51+H72+H73) -> 0 | J77: =SUM(J51+J72+J73) -> 0 | L77: =SUM(L51+L72+L73) -> 0 | N77: =SUM(N51+N72+N73) -> 0 | P77: =SUM(P51+P72+P73) -> 0
A78: F&A Base | H78: =IF(H58>25000,"25000",H58)+IF(H62>25000,"25000",H62)+IF(H66>25000,"25000",H66)+IF(H70>25000,"25000",H70)+H22 -> 0 | J78: =IF(J58>25000,"25000",J58)+IF(J62>25000,"25000",J62)+IF(J66>25000,"25000",J66)+IF(J70>25000,"25000",J70)+J22 -> 0 | L78: =IF(L58>25000,"25000",L58)+IF(L62>25000,"25000",L62)+IF(L66>25000,"25000",L66)+IF(L70>25000,"25000",L70)+L22 -> 0 | N78: =IF(N58>25000,"25000",N58)+IF(N62>25000,"25000",N62)+IF(N66>25000,"25000",N66)+IF(N70>25000,"25000",N70)+N22 -> 0 | P78: =IF(P58>25000,"25000",P58)+IF(P62>25000,"25000",P62)+IF(P66>25000,"25000",P66)+IF(P70>25000,"25000",P70)+P22 -> 0
A79: Total F&A | H79: =ROUND(+H78*FA,0) -> 0 | J79: =ROUND(+J78*FA,0) -> 0 | L79: =ROUND(+L78*FA,0) -> 0 | N79: =ROUND(+N78*FA,0) -> 0 | P79: =ROUND(+P78*FA,0) -> 0
A80: Total Costs | H80: =SUM(H77+H79) -> 0 | J80: =SUM(J77+J79) -> 0 | L80: =SUM(L77+L79) -> 0 | N80: =SUM(N77+N79) -> 0 | P80: =SUM(P77+P79) -> 0
C81: This is your Modular Amount > > >
H82: =+H51+H72 -> 0 | J82: =+J51+J72 -> 0 | L82: =+L51+L72 -> 0 | N82: =+N51+N72 -> 0 | P82: =+P51+P72 -> 0
A83: =term -> 1 | B83: -Year Totals
A84: Project Direct total | C84: =SUM(H77+J77+L77+N77+P77) -> 0
A85: Project F&A base | C85: =SUM(H78+J78+L78+N78+P78) -> 0
A86: Project F&A total | C86: =SUM(H79+J79+L79+N79+P79) -> 0
A87: Project Total Cost | C87: =(C84+C86) -> 0

Sheet Mod Budget Form
B2: Principal Investigator/Program Director (Last, First, Middle): | I2: ='Base Budget'!B15 & "" -> 
A4: BUDGET JUSTIFICATION PAGE
A5: MODULAR RESEARCH GRANT APPLICATION
B7: Initial Period | D7: 2nd | F7: 3rd | H7: 4th | J7: 5th | L7: Sum Total (For Entire Project Period)
A8: DC less Consortium F&A | B8: =+'Base Budget'!H51+'Base Budget'!H72 -> 0 | D8: =+'Base Budget'!J51+'Base Budget'!J72 -> 0 | F8: =+'Base Budget'!L51+'Base Budget'!L72 -> 0 | H8: =+'Base Budget'!N51+'Base Budget'!N72 -> 0 | J8: =+'Base Budget'!P51+'Base Budget'!P72 -> 0 | L8: =SUM(B8:K8) -> 0
B9: (Item 7a, Face Page) | L9: (Item 8a, Face Page)
A10: Consortium F&A | B10: =+'Base Budget'!H73 -> 0 | D10: =+'Base Budget'!J73 -> 0 | F10: =+'Base Budget'!L73 -> 0 | H10: =+'Base Budget'!N73 -> 0 | J10: =+'Base Budget'!P73 -> 0 | L10: =SUM(B10:K10) -> 0
A11: Total Direct Costs | B11: =SUM(B8:C10) -> 0 | D11: =SUM(D8:E10) -> 0 | F11: =SUM(F8:G10) -> 0 | H11: =SUM(H8:I10) -> 0 | J11: =SUM(J8:K10) -> 0 | L11: =SUM(B11:K11) -> 0
A13: Personnel
A35: Consortium
A51: Fixed Fee (SBIR/STTR Only)
A57: PHS 398 (Rev. 04/06) | F57: Page | I57: Modular Budget Format Page

Sheet Checklist
G1: Program Director/Principal Investigator (Last, First, Middle): | J1: ='Base Budget'!B15 & "" -> 
A2: CHECKLIST
A3: TYPE OF APPLICATION (Check all that apply.)
B4: NEW application. (This application is being submitted to the PHS for the first time.)
B5: RESUBMISSION of application number:
B6: (This application replaces a prior unfunded version of a new, renewal, or revision application.)
B7: RENEWAL of grant number:
B8: (This application is to extend a funded grant beyond its current project period.)
B10: REVISION to grant number:
B11: (This application is for additional funds to supplement a currently funded grant.)
B12: CHANGE of program director/principal investigator.
B13: Name of former program director/principal investigator:
B14: CHANGE of Grantee Institution. Name of former institution:
B15: FOREIGN application | D15: Domestic Grant with foreign involvement | I15: List Country(ies) Involved:
A16: INVENTIONS AND PATENTS (Renewal appl. only) | F16: No | G16: Yes
G17: If "Yes," | I17: Previously reported | O17: Not previously reported
A18: 1. PROGRAM INCOME (See instructions.)
A19: All applications must indicate whether program income is anticipated during the period(s) for which grant support is requested. If program income is
A20: anticipated, use the format below to reflect the amount and source(s).
A21: Budget Period | D21: Anticipated Amount | K21: Source(s)
B22: N/A | E22: N/A | K22: N/A
A26: 2. ASSURANCES/CERTIFICATIONS (See instructions.)
A27: In signing the application Face Page, the authorized organizational representative agrees to comply with the policies, assurances and/or certifications
A28: listed in the application instructions when applicable. Descriptions of individual assurances/certifications are provided in Part III and listed in Part I, 4.1
A29: under item 14. If unable to certify compliance, where applicable, provide an explanation and place it after this page.
A30: 3. FACILITIES AND ADMINISTRATIVE COSTS (F&A)/ INDIRECT COSTS. See specific instructions.
A31: x | B31: DHHS Agreement dated: | E31: 2012-11-27 | J31: No Facilities And Administrative Costs Requested.
B32: DHHS Agreement being negotiated with | K32: Regional Office.
B33: No DHHS Agreement, but rate established with | K33: Date
A35: CALCULATION* (The entire grant application, including the Checklist, will be reproduced and provided to peer reviewers as confidential information.)
A36: a. Initial budget period: | E36: Amount of base $ | F36: 0 | H36: x Rate applied | J36: =FA -> 0.5 | L36: % = F&A costs | N36: $ | O36: 0
A37: b. 02 year | E37: Amount of base $ | F37: 0 | H37: x Rate applied | J37: =FA -> 0.5 | L37: % = F&A costs | N37: $ | O37: 0
A38: c. 03 year | E38: Amount of base $ | F38: 0 | H38: x Rate applied | J38: =FA -> 0.5 | L38: % = F&A costs | N38: $ | O38: 0
A39: d. 04 year | E39: Amount of base $ | F39: 0 | H39: x Rate applied | J39: =FA -> 0.5 | L39: % = F&A costs | N39: $ | O39: 0
A40: e. 05 year | E40: Amount of base $ | F40: 0 | H40: x Rate applied | J40: =FA -> 0.5 | L40: % = F&A costs | N40: $ | O40: 0
E41: Enter Rate above as a decimal (e.g., 0.25 for 25%, 0.495 | L41: TOTAL F&A Costs | N41: $ | O41: 0
A42: *Check appropriate box(es): | E42: for 49.5%
B43: Salary and wages base | E43: X | F43: Modified total direct cost base | K43: Other base (Explain)
B44: Off-site, other special rate, or more than one rate involved (Explain)
A45: Explanation (Attach separate sheet, if necessary.):
A50: 4. DISCLOSURE PERMISSION STATEMENT: If this application does not result in an award, is the Government permitted to disclose the title of
A51: your proposed project, and the name, address, telephone number and e-mail address of the official signing for the applicant organization, to
A52: organizations that may be interested in contacting you for further information (e.g., possible collaborations, investment)? | N52: Yes | O52: No
A53: PHS 398 (Rev. 6/09) | G53: Page | O53: Checklist Form Page

Sheet Tuition
C1: Tuition Costs | K1: Year 1 | M1: Year 2 | O1: Year 3 | Q1: Year 4 | S1: Year 5
K3: Funds Requested | M3: Funds Requested | O3: Funds Requested | Q3: Funds Requested | S3: Funds Requested
A6: 8 | C6: Graduate Student Tuition (most Majors) | G6: select 1/4-time/1/2-time > > | I6: 1/2-time | K6: =ROUND(IF(I6="1/2-time",K7,K8),0) -> 0 | M6: =ROUND(IF(I6="1/2-time",M7,M8),0) -> 0 | O6: =ROUND(IF(I6="1/2-time",O7,O8),0) -> 0 | Q6: =ROUND(IF(I6="1/2-time",Q7,Q8),0) -> 0 | S6: =ROUND(IF(I6="1/2-time",S7,S8),0) -> 0
A7: 8 | C7: Graduate Student Tuition | I7: Maximum | K7: =+C13*VLOOKUP(K13,$I$73:$Q$99,5,FALSE)+C15*VLOOKUP(K15,$I$73:$Q$99,5,FALSE)+C17*VLOOKUP(K17,$I$73:$Q$99,5,FALSE)+C19*VLOOKUP(K19,$I$73:$Q$99,9,FALSE)+C21*VLOOKUP(K21,$I$73:$Q$99,9,FALSE)+C23*VLOOKUP(K23,$I$73:$Q$99,9,FALSE) -> 0 | M7: =+E13*VLOOKUP(M13,$I$73:$Q$99,5,FALSE)+E15*VLOOKUP(M15,$I$73:$Q$99,5,FALSE)+E17*VLOOKUP(M17,$I$73:$Q$99,5,FALSE)+E19*VLOOKUP(M19,$I$73:$Q$99,9,FALSE)+E21*VLOOKUP(M21,$I$73:$Q$99,9,FALSE)+E23*VLOOKUP(M23,$I$73:$Q$99,9,FALSE) -> 0 | O7: =+F13*VLOOKUP(O13,$I$73:$Q$99,5,FALSE)+F15*VLOOKUP(O15,$I$73:$Q$99,5,FALSE)+F17*VLOOKUP(O17,$I$73:$Q$99,5,FALSE)+F19*VLOOKUP(O19,$I$73:$Q$99,9,FALSE)+F21*VLOOKUP(O21,$I$73:$Q$99,9,FALSE)+F23*VLOOKUP(O23,$I$73:$Q$99,9,FALSE) -> 0 | Q7: =+G13*VLOOKUP(Q13,$I$73:$Q$99,5,FALSE)+G15*VLOOKUP(Q15,$I$73:$Q$99,5,FALSE)+G17*VLOOKUP(Q17,$I$73:$Q$99,5,FALSE)+G19*VLOOKUP(Q19,$I$73:$Q$99,9,FALSE)+G21*VLOOKUP(Q21,$I$73:$Q$99,9,FALSE)+G23*VLOOKUP(Q23,$I$73:$Q$99,9,FALSE) -> 0 | S7: =+H13*VLOOKUP(S13,$I$73:$Q$99,5,FALSE)+H15*VLOOKUP(S15,$I$73:$Q$99,5,FALSE)+H17*VLOOKUP(S17,$I$73:$Q$99,5,FALSE)+H19*VLOOKUP(S19,$I$73:$Q$99,9,FALSE)+H21*VLOOKUP(S21,$I$73:$Q$99,9,FALSE)+H23*VLOOKUP(S23,$I$73:$Q$99,9,FALSE) -> 0
A8: 8 | C8: Graduate Student Tuition | I8: Minimum | K8: =+C13*VLOOKUP(K13,$I$73:$Q$99,3,FALSE)+C15*VLOOKUP(K15,$I$73:$Q$99,3,FALSE)+C17*VLOOKUP(K17,$I$73:$Q$99,3,FALSE)+C19*VLOOKUP(K19,$I$73:$Q$99,7,FALSE)+C21*VLOOKUP(K21,$I$73:$Q$99,7,FALSE)+C23*VLOOKUP(K23,$I$73:$Q$99,7,FALSE) -> 0 | M8: =+E13*VLOOKUP(M13,$I$73:$Q$99,3,FALSE)+E15*VLOOKUP(M15,$I$73:$Q$99,3,FALSE)+E17*VLOOKUP(M17,$I$73:$Q$99,3,FALSE)+E19*VLOOKUP(M19,$I$73:$Q$99,7,FALSE)+E21*VLOOKUP(M21,$I$73:$Q$99,7,FALSE)+E23*VLOOKUP(M23,$I$73:$Q$99,7,FALSE) -> 0 | O8: =+F13*VLOOKUP(O13,$I$73:$Q$99,3,FALSE)+F15*VLOOKUP(O15,$I$73:$Q$99,3,FALSE)+F17*VLOOKUP(O17,$I$73:$Q$99,3,FALSE)+F19*VLOOKUP(O19,$I$73:$Q$99,7,FALSE)+F21*VLOOKUP(O21,$I$73:$Q$99,7,FALSE)+F23*VLOOKUP(O23,$I$73:$Q$99,7,FALSE) -> 0 | Q8: =+G13*VLOOKUP(Q13,$I$73:$Q$99,3,FALSE)+G15*VLOOKUP(Q15,$I$73:$Q$99,3,FALSE)+G17*VLOOKUP(Q17,$I$73:$Q$99,3,FALSE)+G19*VLOOKUP(Q19,$I$73:$Q$99,7,FALSE)+G21*VLOOKUP(Q21,$I$73:$Q$99,7,FALSE)+G23*VLOOKUP(Q23,$I$73:$Q$99,7,FALSE) -> 0 | S8: =+H13*VLOOKUP(S13,$I$73:$Q$99,3,FALSE)+H15*VLOOKUP(S15,$I$73:$Q$99,3,FALSE)+H17*VLOOKUP(S17,$I$73:$Q$99,3,FALSE)+H19*VLOOKUP(S19,$I$73:$Q$99,7,FALSE)+H21*VLOOKUP(S21,$I$73:$Q$99,7,FALSE)+H23*VLOOKUP(S23,$I$73:$Q$99,7,FALSE) -> 0
C11: Graduate Student Tuition (most majors)
C12: Year 1 | E12: Year 2 | F12: Year 3 | G12: Year 4 | H12: Year 5
A13: Masters Students (enter no. of students per term) | I13: Summer | K13: Summer 2014 | M13: Summer 2015 | O13: Summer 2016 | Q13: Summer 2017 | S13: Summer 2018
I15: Fall | K15: Fall 2014 | M15: Fall 2015 | O15: Fall 2016 | Q15: Fall 2017 | S15: Fall 2018
E17: 0 | F17: 0 | G17: 0 | H17: 0 | I17: Spring | K17: Spring 2015 | M17: Spring 2016 | O17: Spring 2017 | Q17: Spring 2018 | S17: Spring 2019
A19: PhD Students (enter no. of students per term) | I19: Summer | K19: Summer 2014 | M19: Summer 2015 | O19: Summer 2016 | Q19: Summer 2017 | S19: Summer 2018
I21: Fall | K21: Fall 2014 | M21: Fall 2015 | O21: Fall 2016 | Q21: Fall 2017 | S21: Fall 2018
I23: Spring | K23: Spring 2015 | M23: Spring 2016 | O23: Spring 2017 | Q23: Spring 2018 | S23: Spring 2019
A26: 8 | C26: Graduate Student Tuition (Engineering & Architecture) | G26: select 1/4-time/1/2-time > > | I26: 1/2-time | K26: =ROUND(IF($I$26="1/2-time",K27,K28),0) -> 0 | M26: =ROUND(IF($I$26="1/2-time",M27,M28),0) -> 0 | O26: =ROUND(IF($I$26="1/2-time",O27,O28),0) -> 0 | Q26: =ROUND(IF($I$26="1/2-time",Q27,Q28),0) -> 0 | S26: =ROUND(IF($I$26="1/2-time",S27,S28),0) -> 0
A27: 8 | C27: Graduate Student Tuition | I27: Maximum | K27: =+C33*VLOOKUP(K33,$I$103:$Q$129,5,FALSE)+C35*VLOOKUP(K35,$I$103:$Q$129,5,FALSE)+C37*VLOOKUP(K37,$I$103:$Q$129,5,FALSE)+C39*VLOOKUP(K39,$I$103:$Q$129,9,FALSE)+C41*VLOOKUP(K41,$I$103:$Q$129,9,FALSE)+C43*VLOOKUP(K43,$I$103:$Q$129,9,FALSE) -> 0 | M27: =+E33*VLOOKUP(M33,$I$103:$Q$129,5,FALSE)+E35*VLOOKUP(M35,$I$103:$Q$129,5,FALSE)+E37*VLOOKUP(M37,$I$103:$Q$129,5,FALSE)+E39*VLOOKUP(M39,$I$103:$Q$129,9,FALSE)+E41*VLOOKUP(M41,$I$103:$Q$129,9,FALSE)+E43*VLOOKUP(M43,$I$103:$Q$129,9,FALSE) -> 0 | O27: =+F33*VLOOKUP(O33,$I$103:$Q$129,5,FALSE)+F35*VLOOKUP(O35,$I$103:$Q$129,5,FALSE)+F37*VLOOKUP(O37,$I$103:$Q$129,5,FALSE)+F39*VLOOKUP(O39,$I$103:$Q$129,9,FALSE)+F41*VLOOKUP(O41,$I$103:$Q$129,9,FALSE)+F43*VLOOKUP(O43,$I$103:$Q$129,9,FALSE) -> 0 | Q27: =+G33*VLOOKUP(Q33,$I$103:$Q$129,5,FALSE)+G35*VLOOKUP(Q35,$I$103:$Q$129,5,FALSE)+G37*VLOOKUP(Q37,$I$103:$Q$129,5,FALSE)+G39*VLOOKUP(Q39,$I$103:$Q$129,9,FALSE)+G41*VLOOKUP(Q41,$I$103:$Q$129,9,FALSE)+G43*VLOOKUP(Q43,$I$103:$Q$129,9,FALSE) -> 0 | S27: =+H33*VLOOKUP(S33,$I$103:$Q$129,5,FALSE)+H35*VLOOKUP(S35,$I$103:$Q$129,5,FALSE)+H37*VLOOKUP(S37,$I$103:$Q$129,5,FALSE)+H39*VLOOKUP(S39,$I$103:$Q$129,9,FALSE)+H41*VLOOKUP(S41,$I$103:$Q$129,9,FALSE)+H43*VLOOKUP(S43,$I$103:$Q$129,9,FALSE) -> 0
A28: 8 | C28: Graduate Student Tuition | I28: Minimum | K28: =+C33*VLOOKUP(K33,$I$103:$Q$129,3,FALSE)+C35*VLOOKUP(K35,$I$103:$Q$129,3,FALSE)+C37*VLOOKUP(K37,$I$103:$Q$129,3,FALSE)+C39*VLOOKUP(K39,$I$103:$Q$129,7,FALSE)+C41*VLOOKUP(K41,$I$103:$Q$129,7,FALSE)+C43*VLOOKUP(K43,$I$103:$Q$129,7,FALSE) -> 0 | M28: =+E33*VLOOKUP(M33,$I$103:$Q$129,3,FALSE)+E35*VLOOKUP(M35,$I$103:$Q$129,3,FALSE)+E37*VLOOKUP(M37,$I$103:$Q$129,3,FALSE)+E39*VLOOKUP(M39,$I$103:$Q$129,7,FALSE)+E41*VLOOKUP(M41,$I$103:$Q$129,7,FALSE)+E43*VLOOKUP(M43,$I$103:$Q$129,7,FALSE) -> 0 | O28: =+F33*VLOOKUP(O33,$I$103:$Q$129,3,FALSE)+F35*VLOOKUP(O35,$I$103:$Q$129,3,FALSE)+F37*VLOOKUP(O37,$I$103:$Q$129,3,FALSE)+F39*VLOOKUP(O39,$I$103:$Q$129,7,FALSE)+F41*VLOOKUP(O41,$I$103:$Q$129,7,FALSE)+F43*VLOOKUP(O43,$I$103:$Q$129,7,FALSE) -> 0 | Q28: =+G33*VLOOKUP(Q33,$I$103:$Q$129,3,FALSE)+G35*VLOOKUP(Q35,$I$103:$Q$129,3,FALSE)+G37*VLOOKUP(Q37,$I$103:$Q$129,3,FALSE)+G39*VLOOKUP(Q39,$I$103:$Q$129,7,FALSE)+G41*VLOOKUP(Q41,$I$103:$Q$129,7,FALSE)+G43*VLOOKUP(Q43,$I$103:$Q$129,7,FALSE) -> 0 | S28: =+H33*VLOOKUP(S33,$I$103:$Q$129,3,FALSE)+H35*VLOOKUP(S35,$I$103:$Q$129,3,FALSE)+H37*VLOOKUP(S37,$I$103:$Q$129,3,FALSE)+H39*VLOOKUP(S39,$I$103:$Q$129,7,FALSE)+H41*VLOOKUP(S41,$I$103:$Q$129,7,FALSE)+H43*VLOOKUP(S43,$I$103:$Q$129,7,FALSE) -> 0
C31: Engineering & Architecture Students Only
C32: Year 1 | E32: Year 2 | F32: Year 3 | G32: Year 4 | H32: Year 5
A33: Masters Students (enter no. of students per term) | I33: Summer | K33: Summer 2014 | M33: Summer 2015 | O33: Summer 2016 | Q33: Summer 2017 | S33: Summer 2018
C34: 1
I35: Fall | K35: Fall 2014 | M35: Fall 2015 | O35: Fall 2016 | Q35: Fall 2017 | S35: Fall 2018
I37: Spring | K37: Spring 2015 | M37: Spring 2016 | O37: Spring 2017 | Q37: Spring 2018 | S37: Spring 2019
C38: Year 1 | E38: Year 2 | F38: Year 3 | G38: Year 4 | H38: Year 5
A39: PhD Students (enter no. of students per term) | C39: 0 | E39: 0 | F39: 0 | G39: 0 | H39: 0 | I39: Summer | K39: Summer 2014 | M39: Summer 2015 | O39: Summer 2016 | Q39: Summer 2017 | S39: Summer 2018
I41: Fall | K41: Fall 2014 | M41: Fall 2015 | O41: Fall 2016 | Q41: Fall 2017 | S41: Fall 2018
C43: 0 | E43: 0 | F43: 0 | G43: 0 | H43: 0 | I43: Spring | K43: Spring 2015 | M43: Spring 2016 | O43: Spring 2017 | Q43: Spring 2018 | S43: Spring 2019
A46: 8 | C46: Graduate Student Tuition (Business & STB) | G46: select 1/4-time/1/2-time > > | I46: 1/2-time | K46: =ROUND(IF($I$46="1/2-time",K47,K48),0) -> 0 | M46: =ROUND(IF($I$46="1/2-time",M47,M48),0) -> 0 | O46: =ROUND(IF($I$46="1/2-time",O47,O48),0) -> 0 | Q46: =ROUND(IF($I$46="1/2-time",Q47,Q48),0) -> 0 | S46: =ROUND(IF($I$46="1/2-time",S47,S48),0) -> 0
A47: 8 | C47: Graduate Student Tuition | I47: Maximum | K47: =+C53*VLOOKUP(K53,$I$133:$Q$159,5,FALSE)+C55*VLOOKUP(K55,$I$133:$Q$159,5,FALSE)+C57*VLOOKUP(K57,$I$133:$Q$159,5,FALSE)+C59*VLOOKUP(K59,$I$133:$Q$159,9,FALSE)+C61*VLOOKUP(K61,$I$133:$Q$159,9,FALSE)+C63*VLOOKUP(K63,$I$133:$Q$159,9,FALSE) -> 0 | M47: =+E53*VLOOKUP(M53,$I$133:$Q$159,5,FALSE)+E55*VLOOKUP(M55,$I$133:$Q$159,5,FALSE)+E57*VLOOKUP(M57,$I$133:$Q$159,5,FALSE)+E59*VLOOKUP(M59,$I$133:$Q$159,9,FALSE)+E61*VLOOKUP(M61,$I$133:$Q$159,9,FALSE)+E63*VLOOKUP(M63,$I$133:$Q$159,9,FALSE) -> 0 | O47: =+F53*VLOOKUP(O53,$I$133:$Q$159,5,FALSE)+F55*VLOOKUP(O55,$I$133:$Q$159,5,FALSE)+F57*VLOOKUP(O57,$I$133:$Q$159,5,FALSE)+F59*VLOOKUP(O59,$I$133:$Q$159,9,FALSE)+F61*VLOOKUP(O61,$I$133:$Q$159,9,FALSE)+F63*VLOOKUP(O63,$I$133:$Q$159,9,FALSE) -> 0 | Q47: =+G53*VLOOKUP(Q53,$I$133:$Q$159,5,FALSE)+G55*VLOOKUP(Q55,$I$133:$Q$159,5,FALSE)+G57*VLOOKUP(Q57,$I$133:$Q$159,5,FALSE)+G59*VLOOKUP(Q59,$I$133:$Q$159,9,FALSE)+G61*VLOOKUP(Q61,$I$133:$Q$159,9,FALSE)+G63*VLOOKUP(Q63,$I$133:$Q$159,9,FALSE) -> 0 | S47: =+H53*VLOOKUP(S53,$I$133:$Q$159,5,FALSE)+H55*VLOOKUP(S55,$I$133:$Q$159,5,FALSE)+H57*VLOOKUP(S57,$I$133:$Q$159,5,FALSE)+H59*VLOOKUP(S59,$I$133:$Q$159,9,FALSE)+H61*VLOOKUP(S61,$I$133:$Q$159,9,FALSE)+H63*VLOOKUP(S63,$I$133:$Q$159,9,FALSE) -> 0
A48: 8 | C48: Graduate Student Tuition | I48: Minimum | K48: =+C53*VLOOKUP(K53,$I$133:$Q$159,3,FALSE)+C55*VLOOKUP(K55,$I$133:$Q$159,3,FALSE)+C57*VLOOKUP(K57,$I$133:$Q$159,3,FALSE)+C59*VLOOKUP(K59,$I$133:$Q$159,7,FALSE)+C61*VLOOKUP(K61,$I$133:$Q$159,7,FALSE)+C63*VLOOKUP(K63,$I$133:$Q$159,7,FALSE) -> 0 | M48: =+E53*VLOOKUP(M53,$I$133:$Q$159,3,FALSE)+E55*VLOOKUP(M55,$I$133:$Q$159,3,FALSE)+E57*VLOOKUP(M57,$I$133:$Q$159,3,FALSE)+E59*VLOOKUP(M59,$I$133:$Q$159,7,FALSE)+E61*VLOOKUP(M61,$I$133:$Q$159,7,FALSE)+E63*VLOOKUP(M63,$I$133:$Q$159,7,FALSE) -> 0 | O48: =+F53*VLOOKUP(O53,$I$133:$Q$159,3,FALSE)+F55*VLOOKUP(O55,$I$133:$Q$159,3,FALSE)+F57*VLOOKUP(O57,$I$133:$Q$159,3,FALSE)+F59*VLOOKUP(O59,$I$133:$Q$159,7,FALSE)+F61*VLOOKUP(O61,$I$133:$Q$159,7,FALSE)+F63*VLOOKUP(O63,$I$133:$Q$159,7,FALSE) -> 0 | Q48: =+G53*VLOOKUP(Q53,$I$133:$Q$159,3,FALSE)+G55*VLOOKUP(Q55,$I$133:$Q$159,3,FALSE)+G57*VLOOKUP(Q57,$I$133:$Q$159,3,FALSE)+G59*VLOOKUP(Q59,$I$133:$Q$159,7,FALSE)+G61*VLOOKUP(Q61,$I$133:$Q$159,7,FALSE)+G63*VLOOKUP(Q63,$I$133:$Q$159,7,FALSE) -> 0 | S48: =+H53*VLOOKUP(S53,$I$133:$Q$159,3,FALSE)+H55*VLOOKUP(S55,$I$133:$Q$159,3,FALSE)+H57*VLOOKUP(S57,$I$133:$Q$159,3,FALSE)+H59*VLOOKUP(S59,$I$133:$Q$159,7,FALSE)+H61*VLOOKUP(S61,$I$133:$Q$159,7,FALSE)+H63*VLOOKUP(S63,$I$133:$Q$159,7,FALSE) -> 0
C51: Business and STB Students Only
C52: Year 1 | E52: Year 2 | F52: Year 3 | G52: Year 4 | H52: Year 5
A53: Masters Students (enter no. of students per term) | I53: Summer | K53: Summer 2014 | M53: Summer 2015 | O53: Summer 2016 | Q53: Summer 2017 | S53: Summer 2018
C54: 1
I55: Fall | K55: Fall 2014 | M55: Fall 2015 | O55: Fall 2016 | Q55: Fall 2017 | S55: Fall 2018
I57: Spring | K57: Spring 2015 | M57: Spring 2016 | O57: Spring 2017 | Q57: Spring 2018 | S57: Spring 2019
C58: Year 1 | E58: Year 2 | F58: Year 3 | G58: Year 4 | H58: Year 5
A59: PhD Students (enter no. of students per term) | I59: Summer | K59: Summer 2014 | M59: Summer 2015 | O59: Summer 2016 | Q59: Summer 2017 | S59: Summer 2018
I61: Fall | K61: Fall 2014 | M61: Fall 2015 | O61: Fall 2016 | Q61: Fall 2017 | S61: Fall 2018
I63: Spring | K63: Spring 2015 | M63: Spring 2016 | O63: Spring 2017 | Q63: Spring 2018 | S63: Spring 2019
K69: Masters - Min | M69: Masters-Max | O69: PhD - Min | Q69: PhD - Max | S69: esc. Rate
S70: 1.042
S71: 1/4-time
S72: 1/2-time
I73: Fall 2014 | K73: 999 | M73: 1998 | O73: 1998 | Q73: 3995
I74: Fall 2015 | K74: =K73*$S$70 -> 1040.958 | M74: =M73*$S$70 -> 2081.916 | O74: =O73*$S$70 -> 2081.916 | Q74: =Q73*$S$70 -> 4162.79
I75: Fall 2016 | K75: =K74*$S$70 -> 1084.678236 | M75: 2169.356472 | O75: 2169.356472 | Q75: 4337.62718
I76: Fall 2017 | K76: 1130.234722 | M76: 2260.469444 | O76: 2260.469444 | Q76: 4519.807522
I77: Fall 2018 | K77: 1177.70458 | M77: 2355.40916 | O77: 2355.40916 | Q77: 4709.639437
I78: Fall 2019 | K78: 1227.168173 | M78: 2454.336345 | O78: 2454.336345 | Q78: 4907.444294
I79: Fall 2020 | K79: 1278.709236 | M79: 2557.418472 | O79: 2557.418472 | Q79: 5113.556954
I80: Fall 2021 | K80: 1332.415024 | M80: 2664.830048 | O80: 2664.830048 | Q80: 5328.326346
I82: Spring 2015 | K82: 998.75 | M82: 1998 | O82: 1998 | Q82: 3995
I83: Spring 2016 | K83: =K82*$S$70 -> 1040.6975 | M83: =M82*$S$70 -> 2081.916 | O83: =O82*$S$70 -> 2081.916 | Q83: =Q82*$S$70 -> 4162.79
I84: Spring 2017 | K84: 1084.406795 | M84: 2169.356472 | O84: 2169.356472 | Q84: 4337.62718
I85: Spring 2018 | K85: 1129.95188 | M85: 2260.469444 | O85: 2260.469444 | Q85: 4519.807522
I86: Spring 2019 | K86: 1177.409859 | M86: 2355.40916 | O86: 2355.40916 | Q86: 4709.639437
I87: Spring 2020 | K87: 1226.861073 | M87: 2454.336345 | O87: 2454.336345 | Q87: 4907.444294
I88: Spring 2021 | K88: 1278.389239 | M88: 2557.418472 | O88: 2557.418472 | Q88: 5113.556954
I89: Spring 2022 | K89: 1332.081587 | M89: 2664.830048 | O89: 2664.830048 | Q89: 5328.326346
I91: Summer 2014 | K91: 555 | M91: 1110 | O91: 1110 | Q91: 2220
I92: Summer 2015 | K92: =K91*$S$70 -> 578.31 | M92: =M91*$S$70 -> 1156.62 | O92: =O91*$S$70 -> 1156.62 | Q92: =Q91*$S$70 -> 2313.24
I93: Summer 2016 | K93: 602.59902 | M93: 1205.19804 | O93: 1205.19804 | Q93: 2410.39608
I94: Summer 2017 | K94: 627.9081788 | M94: 1255.816358 | O94: 1255.816358 | Q94: 2511.632715
I95: Summer 2018 | K95: 654.2803224 | M95: 1308.560645 | O95: 1308.560645 | Q95: 2617.121289
I96: Summer 2019 | K96: 681.7600959 | M96: 1363.520192 | O96: 1363.520192 | Q96: 2727.040384
I97: Summer 2020 | K97: 710.3940199 | M97: 1420.78804 | O97: 1420.78804 | Q97: 2841.57608
I98: Summer 2021 | K98: 740.2305688 | M98: 1480.461138 | O98: 1480.461138 | Q98: 2960.922275
I100: Engineering & Architecture students
K101: Masters - Min | M101: Masters-Max | O101: PhD - Min | Q101: PhD - Max
I103: Fall 2014 | K103: 1151.25 | M103: 2302.5 | O103: 2302.5 | Q103: 4605
I104: Fall 2015 | K104: =K103*$S$70 -> 1199.6025 | M104: =M103*$S$70 -> 2399.205 | O104: =O103*$S$70 -> 2399.205 | Q104: =Q103*$S$70 -> 4798.41
I105: Fall 2016 | K105: 1249.985805 | M105: 2499.97161 | O105: 2499.97161 | Q105: 4999.94322
I106: Fall 2017 | K106: 1302.485209 | M106: 2604.970418 | O106: 2604.970418 | Q106: 5209.940835
I107: Fall 2018 | K107: 1357.189588 | M107: 2714.379175 | O107: 2714.379175 | Q107: 5428.75835
I108: Fall 2019 | K108: 1414.19155 | M108: 2828.383101 | O108: 2828.383101 | Q108: 5656.766201
I109: Fall 2020 | K109: 1473.587595 | M109: 2947.175191 | O109: 2947.175191 | Q109: 5894.350381
I110: Fall 2021 | K110: 1535.478274 | M110: 3070.956549 | O110: 3070.956549 | Q110: 6141.913097
K111: 0 | O111: 0
I112: Spring 2015 | K112: 1151.25 | M112: 2302.5 | O112: 2302.5 | Q112: 4605
I113: Spring 2016 | K113: =K112*$S$70 -> 1199.6025 | M113: =M112*$S$70 -> 2399.205 | O113: =O112*$S$70 -> 2399.205 | Q113: =Q112*$S$70 -> 4798.41
I114: Spring 2017 | K114: 1249.985805 | M114: 2499.97161 | O114: 2499.97161 | Q114: 4999.94322
I115: Spring 2018 | K115: 1302.485209 | M115: 2604.970418 | O115: 2604.970418 | Q115: 5209.940835
I116: Spring 2019 | K116: 1357.189588 | M116: 2714.379175 | O116: 2714.379175 | Q116: 5428.75835
I117: Spring 2020 | K117: 1414.19155 | M117: 2828.383101 | O117: 2828.383101 | Q117: 5656.766201
I118: Spring 2021 | K118: 1473.587595 | M118: 2947.175191 | O118: 2947.175191 | Q118: 5894.350381
I119: Spring 2022 | K119: 1535.478274 | M119: 3070.956549 | O119: 3070.956549 | Q119: 6141.913097
K120: 0 | O120: 0
I121: Summer 2014 | K121: 640 | M121: 1280 | O121: 1280 | Q121: 2560
I122: Summer 2015 | K122: =K121*$S$70 -> 666.88 | M122: =M121*$S$70 -> 1333.76 | O122: =O121*$S$70 -> 1333.76 | Q122: =Q121*$S$70 -> 2667.52
I123: Summer 2016 | K123: 694.88896 | M123: 1389.77792 | O123: 1389.77792 | Q123: 2779.55584
I124: Summer 2017 | K124: 724.0742963 | M124: 1448.148593 | O124: 1448.148593 | Q124: 2896.297185
I125: Summer 2018 | K125: 754.4854168 | M125: 1508.970834 | O125: 1508.970834 | Q125: 3017.941667
I126: Summer 2019 | K126: 786.1738043 | M126: 1572.347609 | O126: 1572.347609 | Q126: 3144.695217
I127: Summer 2020 | K127: 819.193104 | M127: 1638.386208 | O127: 1638.386208 | Q127: 3276.772416
I128: Summer 2021 | K128: 853.5992144 | M128: 1707.198429 | O128: 1707.198429 | Q128: 3414.396858
I130: Business & STB
K131: Masters - Min | M131: Masters-Max | O131: PhD - Min | Q131: PhD - Max
I133: Fall 2014 | K133: 1213 | M133: 2425 | O133: 2425 | Q133: 4850
I134: Fall 2015 | K134: =K133*$S$70 -> 1263.946 | M134: =M133*$S$70 -> 2526.85 | O134: =O133*$S$70 -> 2526.85 | Q134: =Q133*$S$70 -> 5053.7
I135: Fall 2016 | K135: 1317.031732 | M135: 2632.9777 | O135: 2632.9777 | Q135: 5265.9554
I136: Fall 2017 | K136: 1372.347065 | M136: 2743.562763 | O136: 2743.562763 | Q136: 5487.125527
I137: Fall 2018 | K137: 1429.985641 | M137: 2858.792399 | O137: 2858.792399 | Q137: 5717.584799
I138: Fall 2019 | K138: 1490.045038 | M138: 2978.86168 | O138: 2978.86168 | Q138: 5957.72336
I139: Fall 2020 | K139: 1552.62693 | M139: 3103.973871 | O139: 3103.973871 | Q139: 6207.947742
I140: Fall 2021 | K140: 1617.837261 | M140: 3234.340773 | O140: 3234.340773 | Q140: 6468.681547
K141: 0 | O141: 0
I142: Spring 2015 | K142: 1213 | M142: 2425 | O142: 2425 | Q142: 4850
I143: Spring 2016 | K143: =K142*$S$70 -> 1263.946 | M143: =M142*$S$70 -> 2526.85 | O143: =O142*$S$70 -> 2526.85 | Q143: =Q142*$S$70 -> 5053.7
I144: Spring 2017 | K144: 1317.031732 | M144: 2632.9777 | O144: 2632.9777 | Q144: 5265.9554
I145: Spring 2018 | K145: 1372.347065 | M145: 2743.562763 | O145: 2743.562763 | Q145: 5487.125527
I146: Spring 2019 | K146: 1429.985641 | M146: 2858.792399 | O146: 2858.792399 | Q146: 5717.584799
I147: Spring 2020 | K147: 1490.045038 | M147: 2978.86168 | O147: 2978.86168 | Q147: 5957.72336
I148: Spring 2021 | K148: 1552.62693 | M148: 3103.973871 | O148: 3103.973871 | Q148: 6207.947742
I149: Spring 2022 | K149: 1617.837261 | M149: 3234.340773 | O149: 3234.340773 | Q149: 6468.681547
K150: 0 | O150: 0
I151: Summer 2014 | K151: 674 | M151: 1348 | O151: 1348 | Q151: 2695
I152: Summer 2015 | K152: =K151*$S$70 -> 702.308 | M152: =M151*$S$70 -> 1404.616 | O152: =O151*$S$70 -> 1404.616 | Q152: =Q151*$S$70 -> 2808.19
I153: Summer 2016 | K153: 731.804936 | M153: 1463.609872 | O153: 1463.609872 | Q153: 2926.13398
I154: Summer 2017 | K154: 762.5407433 | M154: 1525.081487 | O154: 1525.081487 | Q154: 3049.031607
I155: Summer 2018 | K155: 794.5674545 | M155: 1589.134909 | O155: 1589.134909 | Q155: 3177.090935
I156: Summer 2019 | K156: 827.9392876 | M156: 1655.878575 | O156: 1655.878575 | Q156: 3310.528754
I157: Summer 2020 | K157: 862.7127377 | M157: 1725.425475 | O157: 1725.425475 | Q157: 3449.570962
I158: Summer 2021 | K158: 898.9466727 | M158: 1797.893345 | O158: 1797.893345 | Q158: 3594.452942

Sheet BA Upload
A1: Sponsor: | B1: NIH
A2: Title:
A3: PI Name:
A4: Period of Performance:
A5: GoldSheet Number:
A6: Account Number:
A8: Budget Categories | B8: Budget Code | C8: Amount
A9: Salary/Hourly | B9: 0108 | C9: 0
A10: Payroll Benefits | B10: 0130 | C10: 0
A11: Equipment | B11: 0710 | C11: =ROUND(SUM('Base Budget'!H33:P33),0) -> 0
A12: Travel Domestic | B12: 0215 | C12: 0
A13: Travel Foreign | B13: 0216 | C13: 0
A14: Student Tuition | B14: 0610 | C14: =ROUND(SUM('Base Budget'!H38:P40),0) -> 0
A15: Supplies | B15: 0410 | C15: 0
A16: Subcontracts
A17: Subject to IDC | B17: 0396 | C17: =ROUND('Base Budget'!U72,0) -> 0
A18: Not Subejct to IDC | B18: 0376 | C18: =ROUND('Base Budget'!W72,0) -> 0
A19: Other Direct Costs
A20: Telecom Charges | B20: 0340 | C20: 0
A21: Computer Usage | B21: 0353 | C21: 0
A22: Printing/Copying | B22: 0373 | C22: 0
A23: Services/Honoraria | B23: 0302 | C23: 0
A24: Postage | B24: 0379 | C24: 0
A25: Other | B25: 0630 | C25: =ROUND(SUM('Base Budget'!H22:P22)+SUM('Base Budget'!H47:P47),0) -> 0
A26: Total Direct Costs | C26: =SUM(C9:C25) -> 0
A27: Indirect Costs | B27: 0642 | C27: =ROUND(SUM('Base Budget'!H79:P79),0) -> 0
A28: Total Costs | C28: =SUM(C26:C27) -> 0
